fUSD/lending_fUSD_20240218
["ID","MTS","AMOUNT","RATE_DAILY","PERIOD"]
[314384251,1708252240648,-734.39,0.00037188,2]
[314384253,1708252240659,-1663.66,0.00037188,2]
[314384255,1708252240668,-1663.66,0.00037188,2]
[314384257,1708252240678,-1663.66,0.00037188,2]
[314384259,1708252240687,-1663.66,0.00037188,2]
[314384261,1708252240696,-1528.09,0.00037188,2]
[314384263,1708252240705,-1528.09,0.00037188,2]
[314384265,1708252240714,-1528.09,0.00037188,2]
[314384266,1708252240724,-1528.09,0.00037188,2]
[314384269,1708252240736,-1528.09,0.00037188,2]
[314384271,1708252240746,-1528.09,0.00037188,2]
[314384273,1708252240756,-1528.09,0.00037188,2]
[314384275,1708252240765,-500.0,0.00037188,2]
[314384277,1708252240774,-500.0,0.00037188,2]
[314384279,1708252240783,-500.0,0.00037188,2]
[314384281,1708252240793,-500.0,0.00037188,2]
[314384283,1708252240802,-773.04,0.00037188,2]
[314384285,1708252240812,-773.04,0.00037188,2]
[314384287,1708252240821,-773.04,0.00037188,2]
[314384289,1708252240830,-773.04,0.00037188,2]
[314384291,1708252240840,-773.04,0.00037188,2]
[314384293,1708252240849,-888.08,0.00037188,2]
[314384295,1708252240858,-773.04,0.00037188,2]
[314384297,1708252240868,-888.08,0.00037188,2]
[314384299,1708252240877,-773.04,0.00037188,2]
[314384301,1708252240886,-888.08,0.00037188,2]
[314384303,1708252240895,-888.08,0.00037188,2]
[314384305,1708252240904,-888.08,0.00037188,2]
[314384307,1708252240914,-888.08,0.00037188,2]
[314384309,1708252240923,-888.08,0.00037188,2]
[314384311,1708252240932,-1271.59,0.00037188,2]
[314384313,1708252240941,-1271.59,0.00037188,2]
[314384315,1708252240951,-1271.59,0.00037188,2]
[314384317,1708252240960,-1271.59,0.00037188,2]
[314384319,1708252240970,-4886.8,0.00037188,2]
[314384321,1708252240979,-4886.8,0.00037188,2]
[314384323,1708252240989,-4886.8,0.00037188,2]
[314384325,1708252240998,-4886.8,0.00037188,2]
[314384327,1708252241008,-662.43,0.00037188,2]
[314384329,1708252241017,-662.43,0.00037188,2]
[314384331,1708252241027,-662.43,0.00037188,2]
[314384334,1708252241036,-662.43,0.00037188,2]
[314384336,1708252241045,-500.0,0.00037188,2]
[314384337,1708252241055,-500.0,0.00037188,2]
[314384340,1708252241064,-500.0,0.00037188,2]
[314384341,1708252241074,-500.0,0.00037188,2]
[314384343,1708252241083,-500.0,0.00037188,2]
[314384346,1708252241092,-500.0,0.00037188,2]
[314384348,1708252241102,-500.0,0.00037188,2]
[314384350,1708252241111,-500.0,0.00037188,2]
[314384352,1708252241121,-500.0,0.00037188,2]
[314384354,1708252241130,-500.0,0.00037188,2]
[314384356,1708252241139,-500.0,0.00037188,2]
[314384358,1708252241148,-500.0,0.00037188,2]
[314384360,1708252241158,-549.18519429,0.00037188,2]
[314384362,1708252241167,-500.0,0.00037188,2]
[314384364,1708252241176,-500.0,0.00037188,2]
[314384366,1708252241186,-500.0,0.00037188,2]
[314384368,1708252241196,-405.57586834,0.00037188,2]
[314384370,1708252241205,-500.0,0.00037188,2]
[314384372,1708252241215,-500.0,0.00037188,2]
[314384374,1708252241224,-500.0,0.00037188,2]
[314384376,1708252241234,-500.0,0.00037188,2]
[314384378,1708252241243,-557.90613345,0.00037188,2]
[314384380,1708252241253,-253.91207861,0.00037188,2]
[314384382,1708252241262,-500.0,0.00037188,2]
[314384384,1708252241272,-500.0,0.00037188,2]
[314384386,1708252241282,-500.0,0.00037188,2]
[314384388,1708252241292,-500.0,0.00037188,2]
[314384390,1708252241301,-500.0,0.00037188,2]
[314384392,1708252241310,-500.0,0.00037188,2]
[314384394,1708252241319,-500.0,0.00037188,2]
[314384396,1708252241328,-183.18614507,0.00037189,2]
[314384398,1708252241338,-210.75069797,0.00037189,2]
[314384400,1708252241347,-916290.48747796,0.00037189,5]
[314384402,1708252241356,-177.48,0.00037196,2]
[314384404,1708252241365,-150.0,0.00037199,2]
[314384406,1708252241375,-500.0,0.00037205,2]
[314384408,1708252241384,-500.0,0.00037205,2]
[314384430,1708252241557,-500.0,0.00037205,2]
[314384433,1708252241600,-500.0,0.00037205,2]
[314384435,1708252241609,-500.0,0.00037205,2]
[314384437,1708252241618,-200.0,0.00037206,2]
[314384439,1708252241627,-500.0,0.00037206,2]
[314384441,1708252241636,-500.0,0.00037206,2]
[314384443,1708252241646,-500.0,0.00037206,2]
[314384445,1708252241655,-500.0,0.00037206,2]
[314384447,1708252241664,-500.0,0.00037206,2]
[314384449,1708252241673,-500.0,0.00037206,2]
[314384451,1708252241683,-500.0,0.00037206,2]
[314384453,1708252241692,-500.0,0.00037206,2]
[314384454,1708252241702,-500.0,0.00037206,2]
[314384457,1708252241711,-500.0,0.00037206,2]
[314384459,1708252241720,-500.0,0.00037206,2]
[314384461,1708252241729,-500.0,0.00037206,2]
[314384463,1708252241763,-500.0,0.00037206,2]
[314384464,1708252241776,-400.0,0.00037206,2]
[314384467,1708252241786,-500.0,0.00037206,2]
[314384469,1708252241795,-500.0,0.00037206,2]
[314384471,1708252241804,-500.0,0.00037206,2]
[314384473,1708252241814,-500.0,0.00037206,2]
[314384475,1708252241823,-500.0,0.00037206,2]
[314384477,1708252241832,-500.0,0.00037206,2]
[314384479,1708252241841,-500.0,0.00037206,2]
[314384481,1708252241851,-500.0,0.00037206,2]
[314384483,1708252241861,-500.0,0.00037206,2]
[314384485,1708252241869,-500.0,0.00037206,2]
[314384486,1708252241879,-500.0,0.00037206,2]
[314384488,1708252241888,-500.0,0.00037206,2]
[314384490,1708252241897,-500.0,0.00037206,2]
[314384492,1708252241907,-500.0,0.00037206,2]
[314384494,1708252241916,-500.0,0.00037206,2]
[314384496,1708252241925,-500.0,0.00037206,2]
[314384498,1708252241934,-500.0,0.00037206,2]
[314384500,1708252241944,-500.0,0.00037206,2]
[314384502,1708252241954,-500.0,0.00037206,2]
[314384505,1708252241963,-500.0,0.00037206,2]
[314384507,1708252241973,-500.0,0.00037206,2]
[314384508,1708252241982,-500.0,0.00037206,2]
[314384511,1708252241991,-500.0,0.00037206,2]
[314384513,1708252242001,-500.0,0.00037206,2]
[314384515,1708252242011,-500.0,0.00037206,2]
[314384517,1708252242019,-500.0,0.00037206,2]
[314384519,1708252242028,-500.0,0.00037206,2]
[314384521,1708252242038,-500.0,0.00037206,2]
[314384523,1708252242047,-500.0,0.00037206,2]
[314384525,1708252242056,-500.0,0.00037206,2]
[314384527,1708252242065,-500.0,0.00037206,2]
[314384529,1708252242074,-500.0,0.00037206,2]
[314384531,1708252242083,-500.0,0.00037206,2]
[314384533,1708252242093,-500.0,0.00037206,2]
[314384535,1708252242102,-500.0,0.00037206,2]
[314384537,1708252242111,-500.0,0.00037206,2]
[314384539,1708252242122,-500.0,0.00037206,2]
[314384540,1708252242131,-500.0,0.00037206,2]
[314384541,1708252242140,-500.0,0.00037206,2]
[314384542,1708252242149,-500.0,0.00037206,2]
[314384543,1708252242158,-500.0,0.00037206,2]
[314384544,1708252242167,-500.0,0.00037206,2]
[314384545,1708252242176,-500.0,0.00037206,2]
[314384546,1708252242184,-500.0,0.00037206,2]
[314384547,1708252242194,-500.0,0.00037206,2]
[314384549,1708252242205,-500.0,0.00037206,2]
[314384552,1708252242217,-500.0,0.00037206,2]
[314384554,1708252242227,-500.0,0.00037206,2]
[314384556,1708252242237,-500.0,0.00037206,2]
[314384558,1708252242247,-500.0,0.00037206,2]
[314384560,1708252242257,-500.0,0.00037206,2]
[314384562,1708252242267,-500.0,0.00037206,2]
[314384564,1708252242278,-500.0,0.00037206,2]
[314384566,1708252242288,-500.0,0.00037206,2]
[314384568,1708252242298,-500.0,0.00037206,2]
[314384570,1708252242308,-500.0,0.00037206,2]
[314384572,1708252242317,-500.0,0.00037206,2]
[314384574,1708252242328,-500.0,0.00037206,2]
[314384576,1708252242338,-500.0,0.00037206,2]
[314384579,1708252242347,-500.0,0.00037206,2]
[314384580,1708252242357,-500.0,0.00037206,2]
[314384582,1708252242366,-500.0,0.00037206,2]
[314384585,1708252242376,-500.0,0.00037206,2]
[314384587,1708252242386,-500.0,0.00037206,2]
[314384589,1708252242395,-500.0,0.00037206,2]
[314384591,1708252242405,-500.0,0.00037206,2]
[314384592,1708252242414,-10000.0,0.00037206,2]
[314384595,1708252242423,-3321.18429848,0.00037216,10]
[314384597,1708252242433,-150.0,0.00037217,2]
[314384599,1708252242442,-500.0,0.00037235,2]
[314384601,1708252242451,-823.21,0.00037235,2]
[314384603,1708252242460,-500.0,0.00037235,2]
[314384605,1708252242470,-753.98,0.00037235,2]
[314384608,1708252242480,-500.0,0.00037235,2]
[314384610,1708252242493,-773.04,0.00037235,2]
[314384612,1708252242502,-888.08,0.00037235,2]
[314384614,1708252242512,-500.0,0.00037235,2]
[314384616,1708252242523,-500.0,0.00037236,2]
[314384618,1708252242534,-500.0,0.00037236,2]
[314384620,1708252242543,-500.0,0.00037236,2]
[314384622,1708252242553,-500.0,0.00037236,2]
[314384624,1708252242563,-403.06226009,0.00037236,2]
[314384627,1708252242572,-500.0,0.00037236,2]
[314384630,1708252242581,-500.0,0.00037236,2]
[314384632,1708252242591,-500.0,0.00037236,2]
[314384634,1708252242600,-500.0,0.00037236,2]
[314384637,1708252242609,-823.21,0.00037236,2]
[314384639,1708252242619,-823.21,0.00037236,2]
[314384641,1708252242629,-823.21,0.00037236,2]
[314384643,1708252242638,-823.21,0.00037236,2]
[314384645,1708252242647,-500.0,0.00037236,2]
[314384647,1708252242657,-462.69874403,0.00037236,2]
[314384649,1708252242667,-231.71084409,0.00037236,2]
[314384651,1708252242677,-753.98,0.00037236,2]
[314384654,1708252242687,-753.98,0.00037236,2]
[314384656,1708252242696,-753.98,0.00037236,2]
[314384658,1708252242706,-753.98,0.00037236,2]
[314384660,1708252242715,-500.0,0.00037236,2]
[314384662,1708252242725,-500.0,0.00037236,2]
[314384664,1708252242734,-500.0,0.00037236,2]
[314384666,1708252242743,-500.0,0.00037236,2]
[314384668,1708252242752,-734.39,0.00037236,2]
[314384670,1708252242762,-734.39,0.00037236,2]
[314384672,1708252242772,-734.39,0.00037236,2]
[314384674,1708252242782,-734.39,0.00037236,2]
[314384676,1708252242791,-734.39,0.00037236,2]
[314384678,1708252242801,-1528.09,0.00037236,2]
[314384680,1708252242811,-1528.09,0.00037236,2]
[314384682,1708252242820,-1528.09,0.00037236,2]
[314384684,1708252242830,-1528.09,0.00037236,2]
[314384686,1708252242840,-1528.09,0.00037236,2]
[314384688,1708252242849,-773.04,0.00037236,2]
[314384691,1708252242859,-773.04,0.00037236,2]
[314384693,1708252242869,-773.04,0.00037236,2]
[314384695,1708252242878,-773.04,0.00037236,2]
[314384697,1708252242887,-888.08,0.00037236,2]
[314384699,1708252242897,-888.08,0.00037236,2]
[314384701,1708252242906,-888.08,0.00037236,2]
[314384703,1708252242915,-888.08,0.00037236,2]
[314384705,1708252242925,-500.0,0.00037236,2]
[314384707,1708252242934,-500.0,0.00037236,2]
[314384709,1708252242944,-500.0,0.00037236,2]
[314384711,1708252242953,-500.0,0.00037236,2]
[314384713,1708252242963,-500.0,0.00037236,2]
[314384715,1708252242973,-500.0,0.00037236,2]
[314384717,1708252242983,-500.0,0.00037236,2]
[314384719,1708252242993,-236.70233278,0.00037236,2]
[314384721,1708252243004,-216.0,0.0003724,2]
[314384723,1708252243014,-1231.0,0.0003724,2]
[314384725,1708252243024,-1255.0,0.0003724,2]
[314384727,1708252243034,-1950.0,0.0003724,2]
[314384729,1708252243043,-450.528,0.0003724,2]
[314384731,1708252243053,-1005.0,0.0003724,2]
[314384733,1708252243063,-429.0,0.0003724,2]
[314384735,1708252243073,-276.0,0.0003724,2]
[314384738,1708252243084,-858.0,0.0003724,2]
[314384740,1708252243094,-321.0,0.0003724,2]
[314384741,1708252243104,-150.0,0.0003724,2]
[314384744,1708252243114,-350.013,0.0003724,2]
[314384746,1708252243123,-343.0,0.0003724,2]
[314384748,1708252243132,-216.84,0.0003724,2]
[314384750,1708252243141,-454.0,0.0003724,2]
[314384752,1708252243151,-8169.0,0.0003724,2]
[314384754,1708252243161,-16697.84746555,0.0003724,2]
[314384761,1708252243202,-3161.15253445,0.0003724,2]
[314384763,1708252243210,-2291.0,0.0003724,2]
[314384765,1708252243219,-4100.0,0.0003724,2]
[314384767,1708252243229,-1008.495,0.0003724,2]
[314384769,1708252243238,-1370.0,0.0003724,2]
[314384771,1708252243247,-2691.0,0.0003724,2]
[314384773,1708252243258,-1866.0,0.0003724,2]
[314384775,1708252243268,-2929.0,0.0003724,2]
[314384777,1708252243280,-709.0,0.0003724,2]
[314384779,1708252243289,-842.0,0.0003724,2]
[314384781,1708252243297,-953.0,0.0003724,2]
[314384783,1708252243306,-4151.7146,0.00037245,2]
[314384785,1708252243315,-266.3223,0.00037245,2]
[314384787,1708252243324,-1044.7,0.00037246,2]
[314384789,1708252243332,-1663.66,0.00037246,2]
[314384791,1708252243342,-500.0,0.00037246,2]
[314384793,1708252243351,-1271.59,0.00037246,2]
[314384795,1708252243361,-4886.8,0.00037246,2]
[314384797,1708252243370,-662.43,0.00037246,2]
[314384799,1708252243378,-500.0,0.00037247,2]
[314384801,1708252243388,-500.0,0.00037247,2]
[314384803,1708252243397,-500.0,0.00037247,2]
[314384805,1708252243407,-546.3328709,0.00037247,2]
[314384807,1708252243415,-500.0,0.00037247,2]
[314384809,1708252243424,-500.0,0.00037247,2]
[314384811,1708252243433,-823.21,0.00037247,2]
[314384813,1708252243443,-823.21,0.00037247,2]
[314384815,1708252243452,-500.0,0.00037247,2]
[314384817,1708252243461,-500.0,0.00037247,2]
[314384819,1708252243470,-500.0,0.00037247,2]
[314384821,1708252243481,-535.8581168,0.00037247,2]
[314384823,1708252243491,-753.98,0.00037247,2]
[314384825,1708252243501,-592.68,0.00037247,2]
[314384827,1708252243511,-753.98,0.00037247,2]
[314384829,1708252243521,-592.68,0.00037247,2]
[314384831,1708252243532,-1044.7,0.00037247,2]
[314384833,1708252243541,-500.0,0.00037247,2]
[314384835,1708252243550,-500.0,0.00037247,2]
[314384837,1708252243560,-734.39,0.00037247,2]
[314384839,1708252243570,-734.39,0.00037247,2]
[314384841,1708252243579,-1663.66,0.00037247,2]
[314384843,1708252243589,-1528.09,0.00037247,2]
[314384845,1708252243599,-1528.09,0.00037247,2]
[314384847,1708252243608,-500.0,0.00037247,2]
[314384849,1708252243618,-773.04,0.00037247,2]
[314384850,1708252243627,-773.04,0.00037247,2]
[314384852,1708252243637,-888.08,0.00037247,2]
[314384854,1708252243646,-1271.59,0.00037247,2]
[314384856,1708252243655,-888.08,0.00037247,2]
[314384858,1708252243665,-4886.8,0.00037247,2]
[314384860,1708252243674,-662.43,0.00037247,2]
[314384862,1708252243684,-500.0,0.00037247,2]
[314384864,1708252243693,-500.0,0.00037247,2]
[314384866,1708252243702,-500.0,0.00037247,2]
[314384868,1708252243712,-500.0,0.00037247,2]
[314384870,1708252243721,-500.0,0.00037247,2]
[314384872,1708252243730,-498.37377908,0.00037247,2]
[314384874,1708252243739,-1000.0,0.00037247,2]
[314384876,1708252243749,-6788.6509,0.00037248,2]
[314384878,1708252243759,-39498.4927,0.00037248,2]
[314384880,1708252243768,-9917.0163,0.00037248,2]
[314384881,1708252243777,-100000.0,0.00037248,2]
[314384883,1708252243786,-245000.0,0.00037248,2]
[314384885,1708252243796,-21171.253,0.00037248,2]
[314384887,1708252243805,-500.0,0.00037248,2]
[314384889,1708252243814,-18881.90907867,0.00037268,2]
[314384891,1708252243825,-300.0,0.00037268,2]
[314384893,1708252243834,-1806.46476156,0.0003727,2]
[314384895,1708252243843,-200.0,0.00037272,3]
[314384897,1708252243852,-800.0,0.00037272,3]
[314384899,1708252243861,-200.0,0.00037272,10]
[314384900,1708252243870,-500.0,0.00037272,10]
[314384901,1708252243879,-200.0,0.00037272,10]
[314384902,1708252243889,-3321.18429848,0.00037285,10]
[314384903,1708252243897,-541.25,0.00037298,2]
[314384904,1708252243907,-303.87,0.00037309,2]
[314384905,1708252243916,-12295.85082884,0.00037316,30]
[314384906,1708252243925,-150.0,0.00037329,2]
[314384907,1708252243934,-150.0,0.00037329,2]
[314384908,1708252243944,-1044.7,0.00037343,2]
[314384909,1708252243953,-1663.66,0.00037343,2]
[314384910,1708252243962,-500.0,0.00037343,2]
[314384918,1708252244021,-1271.59,0.00037343,2]
[314384920,1708252244030,-4886.8,0.00037343,2]
[314384922,1708252244040,-662.43,0.00037343,2]
[314384924,1708252244049,-15203.73383371,0.00037345,4]
[314384926,1708252244058,-731.68229924,0.00037346,5]
[314384928,1708252244067,-500.0,0.00037346,2]
[314384930,1708252244076,-500.0,0.00037346,2]
[314384932,1708252244085,-823.21,0.00037346,2]
[314384934,1708252244095,-500.0,0.00037346,2]
[314384936,1708252244104,-753.98,0.00037346,2]
[314384938,1708252244114,-592.68,0.00037346,2]
[314384940,1708252244123,-539.51825951,0.00037346,2]
[314384942,1708252244133,-734.39,0.00037346,2]
[314384944,1708252244143,-1528.09,0.00037346,2]
[314384946,1708252244153,-773.04,0.00037346,2]
[314384947,1708252244162,-888.08,0.00037346,2]
[314384949,1708252244173,-500.0,0.00037346,2]
[314384952,1708252244183,-500.0,0.00037346,2]
[314384953,1708252244192,-126163.55371701,0.00037347,2]
[314384955,1708252244201,-200.0,0.00037348,2]
[314384958,1708252244211,-2490.39610244,0.00037348,2]
[314384959,1708252244221,-20809.7968609,0.00037352,2]
[314384961,1708252244230,-3321.18429848,0.00037353,10]
[314384964,1708252244239,-150.0,0.00037354,2]
[314384966,1708252244249,-150.0,0.00037365,2]
[314384968,1708252244259,-150.0,0.00037368,2]
[314384970,1708252244268,-1500.0,0.00037386,2]
[314384972,1708252244278,-163.89,0.00037397,2]
[314384974,1708252244287,-150.0,0.00037399,2]
[314384976,1708252244297,-150.0,0.00037399,7]
[314384978,1708252244306,-500.0,0.00037399,2]
[314384980,1708252244316,-500.0,0.00037399,2]
[314384982,1708252244325,-823.21,0.00037399,2]
[314384984,1708252244334,-500.0,0.00037399,2]
[314384986,1708252244345,-753.98,0.00037399,2]
[314384988,1708252244355,-592.68,0.00037399,2]
[314384990,1708252244365,-1044.7,0.00037399,2]
[314384992,1708252244377,-1044.7,0.00037399,2]
[314384994,1708252244387,-1044.7,0.00037399,2]
[314384996,1708252244397,-1044.7,0.00037399,2]
[314384998,1708252244407,-1044.92141246,0.00037399,2]
[314385001,1708252244417,-734.39,0.00037399,2]
[314385003,1708252244427,-1663.66,0.00037399,2]
[314385005,1708252244436,-1663.66,0.00037399,2]
[314385007,1708252244446,-1663.66,0.00037399,2]
[314385008,1708252244455,-1663.66,0.00037399,2]
[314385010,1708252244465,-1663.86633682,0.00037399,2]
[314385012,1708252244474,-1528.09,0.00037399,2]
[314385014,1708252244486,-500.0,0.00037399,2]
[314385016,1708252244496,-500.0,0.00037399,2]
[314385018,1708252244506,-500.0,0.00037399,2]
[314385019,1708252244515,-318.47686247,0.00037399,2]
[314385020,1708252244526,-773.04,0.00037399,2]
[314385021,1708252244536,-1271.59,0.00037399,2]
[314385022,1708252244545,-888.08,0.00037399,2]
[314385024,1708252244555,-1271.59,0.00037399,2]
[314385026,1708252244566,-1271.59,0.00037399,2]
[314385028,1708252244575,-1271.59,0.00037399,2]
[314385030,1708252244584,-1271.68578161,0.00037399,2]
[314385032,1708252244593,-4886.8,0.00037399,2]
[314385034,1708252244603,-4886.8,0.00037399,2]
[314385036,1708252244612,-4886.8,0.00037399,2]
[314385038,1708252244621,-4886.8,0.00037399,2]
[314385040,1708252244630,-4886.96181623,0.00037399,2]
[314385042,1708252244639,-662.43,0.00037399,2]
[314385044,1708252244649,-662.43,0.00037399,2]
[314385046,1708252244658,-662.43,0.00037399,2]
[314385047,1708252244667,-662.43,0.00037399,2]
[314385048,1708252244677,-662.65,0.00037399,2]
[314385049,1708252244686,-500.0,0.00037399,2]
[314385050,1708252244696,-500.0,0.00037399,2]
[314385051,1708252244705,-135201.85001549,0.000374,5]
[314385052,1708252244735,-881.82,0.00036388,2]
[314385053,1708252244744,-387.46312655,0.000374,5]
[314385054,1708252244988,-881.82,0.00036864,2]
[314385055,1708252244999,-881.82,0.00037147,2]
[314385056,1708252245010,-881.82,0.00037188,2]
[314385057,1708252245020,-881.82,0.00037188,2]
[314385058,1708252245030,-881.82,0.00037188,2]
[314385059,1708252245040,-881.82,0.00037188,2]
[314385060,1708252245049,-881.82,0.00037188,2]
[314385061,1708252245059,-200.861,0.0003724,2]
[314385062,1708252245068,-1038.0,0.0003724,2]
[314385063,1708252245078,-63.18580611,0.000374,5]
[314385064,1708252245091,-2828.01795911,0.000374,5]
[314385065,1708252245103,-1048.582763,0.000374,5]
[314385066,1708252245117,-500.4773228,0.000374,5]
[314385067,1708252245129,-2710.38515923,0.000374,5]
[314385068,1708252245149,-881.82,0.00037188,2]
[314385069,1708252245159,-977.48256135,0.000374,5]
[314385070,1708252245171,-544.48730369,0.000374,5]
[314385071,1708252245236,-44616.61480552,0.000374,5]
[314385072,1708252245245,-10150.13867913,0.00037402,2]
[314385073,1708252245255,-2039.6476325,0.00037402,2]
[314385074,1708252245265,-150.0,0.00037413,2]
[314385075,1708252245275,-150.0,0.00037413,2]
[314385076,1708252245284,-154.73615782,0.0003742,2]
[314385077,1708252245293,-1033.64403292,0.00037421,10]
[314385078,1708252245306,-966.30500772,0.00037421,10]
[314385079,1708252245436,-881.82,0.00037188,2]
[314385080,1708252245445,-881.82,0.00037235,2]
[314385081,1708252245454,-881.82,0.00037236,2]
[314385082,1708252245463,-1321.23525784,0.00037421,10]
[314385083,1708252245473,-1500.0,0.00037422,2]
[314385084,1708252245483,-2620.34138998,0.00037424,2]
[314385085,1708252245494,-150.0,0.00037428,2]
[314385087,1708252245503,-388.18110102,0.00037444,2]
[314385089,1708252245513,-314.32811759,0.00037444,2]
[314385090,1708252245523,-150.0,0.00037446,2]
[314385091,1708252245533,-1197.15111633,0.0003745,2]
[314385092,1708252245543,-442.54330049,0.00037458,8]
[314385093,1708252245553,-173.08,0.00037461,2]
[314385095,1708252245563,-421.62856075,0.00037462,2]
[314385096,1708252245571,-150.0,0.00037465,2]
[314385097,1708252245581,-150.0,0.00037472,2]
[314385098,1708252245590,-541.25,0.00037486,2]
[314385099,1708252245599,-303.87,0.0003749,2]
[314385100,1708252245608,-3321.18429848,0.0003749,10]
[314385102,1708252245617,-150.0,0.00037491,2]
[314385103,1708252245626,-200.0,0.00037495,3]
[314385105,1708252245635,-800.0,0.00037495,3]
[314385107,1708252245645,-200.0,0.00037495,3]
[314385111,1708252245654,-200.0,0.00037495,10]
[314385113,1708252245664,-500.0,0.00037495,10]
[314385115,1708252245673,-200.0,0.00037495,10]
[314385117,1708252245683,-500.0,0.00037499,2]
[314385118,1708252245692,-500.0,0.00037499,2]
[314385120,1708252245701,-592.68,0.00037499,2]
[314385121,1708252245710,-500.0,0.00037499,2]
[314385122,1708252245719,-5000.0,0.000375,2]
[314385123,1708252245728,-40346.90531812,0.000375,7]
[314385124,1708252245737,-150.0,0.0003751,2]
[314385125,1708252245746,-150.0,0.00037533,2]
[314385126,1708252245754,-209.0,0.0003755,2]
[314385127,1708252245764,-214.0,0.0003755,2]
[314385128,1708252245772,-213.0,0.0003755,2]
[314385129,1708252245781,-3321.18429848,0.00037558,10]
[314385130,1708252245790,-150.0,0.00037561,2]
[314385131,1708252245799,-155.0,0.0003757,2]
[314385132,1708252245809,-300.0,0.00037592,2]
[314385133,1708252245818,-150.0,0.00037598,2]
[314385134,1708252245827,-6982.39311,0.000376,2]
[314385135,1708252245836,-150.0,0.000376,2]
[314385136,1708252245846,-500.0,0.00037608,2]
[314385137,1708252245855,-634.02225759,0.00037608,2]
[314385138,1708252245864,-823.21,0.00037608,2]
[314385139,1708252245873,-823.21,0.00037608,2]
[314385140,1708252245882,-823.21,0.00037608,2]
[314385141,1708252245892,-823.21,0.00037608,2]
[314385142,1708252245901,-823.36157802,0.00037608,2]
[314385143,1708252245911,-753.98,0.00037608,2]
[314385144,1708252245920,-753.98,0.00037608,2]
[314385145,1708252245929,-753.98,0.00037608,2]
[314385146,1708252245939,-753.98,0.00037608,2]
[314385147,1708252245948,-754.2146173,0.00037608,2]
[314385148,1708252245958,-773.04,0.00037608,2]
[314385149,1708252245967,-773.04,0.00037608,2]
[314385150,1708252245976,-773.04,0.00037608,2]
[314385151,1708252245985,-773.04,0.00037608,2]
[314385152,1708252245994,-773.1226627,0.00037608,2]
[314385153,1708252246004,-888.08,0.00037608,2]
[314385154,1708252246014,-888.08,0.00037608,2]
[314385155,1708252246024,-888.08,0.00037608,2]
[314385156,1708252246033,-888.08,0.00037608,2]
[314385157,1708252246043,-888.10503141,0.00037608,2]
[314385158,1708252246052,-500.0,0.00037609,2]
[314385159,1708252246061,-500.0,0.00037609,2]
[314385160,1708252246071,-500.0,0.00037609,2]
[314385161,1708252246080,-500.0,0.00037609,2]
[314385162,1708252246089,-500.0,0.00037609,2]
[314385163,1708252246099,-291.5788,0.00037609,2]
[314385164,1708252246108,-1000.0,0.00037609,2]
[314385165,1708252246118,-1000.0,0.00037609,2]
[314385166,1708252246127,-1000.0,0.00037609,2]
[314385167,1708252246137,-1000.0,0.00037609,2]
[314385168,1708252246147,-1000.0,0.00037609,2]
[314385169,1708252246156,-1000.0,0.00037609,2]